bitfinex/quotes_ETHUSD_20220112
["timestamp","ask_amount","ask_price","bid_price","bid_amount"]
[1641979845188,0.04779723,3266.0,3265.4,0.00682108]
[1641979845587,2.4619538,3266.1,3265.4,0.00682108]
[1641979845787,0.03091005,3266.0,3265.4,0.00682108]
[1641979846390,0.03091005,3266.0,3265.1,0.01216482]
[1641979846391,0.03091005,3266.0,3265.2,0.00795793]
[1641979847043,2.4619538,3266.1,3265.2,0.00795793]
[1641979847238,0.03022374,3265.9,3265.0,1.52120755]
[1641979847437,0.00454739,3266.0,3265.0,1.52120755]
[1641979847641,0.00341055,3265.8,3265.3,0.76559]
[1641979847838,0.00397897,3265.9,3265.3,0.76559]
[1641979848038,0.00284212,3265.7,3265.3,0.76559]
[1641979848238,0.00341055,3265.8,3265.0,1.52120755]
[1641979848437,0.0022737,3265.6,3265.0,1.52120755]
[1641979848637,0.00284212,3265.7,3264.8,2.4959486]
[1641979848841,0.00170528,3265.5,3264.8,2.4959486]
[1641979849042,0.02493016,3265.4,3265.0,0.76564]
[1641979849238,0.00113685,3265.4,3265.0,0.76564]
[1641979849436,0.00454739,3266.0,3265.0,0.71564]
[1641979849837,0.00397897,3265.9,3265.0,0.71564]
[1641979850040,0.00397897,3265.9,3265.2,1.4062541]
[1641979850260,2.06568,3266.1,3265.2,1.4062541]
[1641979850261,0.00341055,3265.8,3265.4,0.00741585]
[1641979850486,0.00341055,3265.8,3265.3,3.51663718]
[1641979850787,6.8077,3266.2,3265.3,5.04753718]
[1641979850788,0.00284212,3265.7,3265.3,5.04753718]
[1641979851185,0.0022737,3265.6,3265.3,5.04753718]
[1641979851387,0.0022737,3265.6,3265.3,2.2965]
[1641979851593,0.00170528,3265.5,3265.3,3.8273423]
[1641979851986,0.00113685,3265.4,3265.3,7.8428023]
[1641979852193,0.00113685,3265.4,3265.3,7.0772023]
[1641979852408,0.00113685,3265.4,3265.3,9.61707787]
[1641979852988,0.00113685,3265.4,3265.3,5.60161787]
[1641979853290,0.00113685,3265.4,3265.3,2.53987557]
[1641979853691,0.00113685,3265.4,3265.2,4.4680747]
[1641979853889,0.00113685,3265.4,3265.2,2.9372141]
[1641979854733,0.00113685,3265.4,3265.2,3.7027541]
[1641979855443,3.685e-05,3265.4,3265.3,11.30103718]
[1641979855643,6.6177,3267.6,3265.5,18.10946007]
[1641979855938,0.01193689,3267.5,3266.3,1.54307797]
[1641979856138,0.01193689,3267.5,3266.8,1.43859677]
[1641979856437,6.6177,3267.6,3266.6,0.441]
[1641979856438,0.01136847,3267.4,3266.6,0.441]
[1641979856642,0.01136847,3267.4,3266.8,0.3]
[1641979856840,0.01080005,3267.3,3267.1,0.76514]
[1641979857137,0.01023162,3267.2,3267.1,0.76514]
[1641979857341,0.01023162,3267.2,3266.8,1.53023]
[1641979857539,1.39935658,3267.1,3266.8,1.53023]
[1641979857754,1.40901978,3267.1,3266.8,1.53023]
[1641979857984,0.00909478,3267.0,3266.8,1.53023]
[1641979858382,0.00852635,3266.9,3266.8,1.53023]
[1641979859188,0.00852635,3266.9,3266.8,4.09291904]
[1641979859583,0.31502635,3266.9,3266.8,1.53023]
[1641979859982,0.31502635,3266.9,3266.6,1.20617]
[1641979860183,0.01402004,3266.8,3266.6,0.76517]
[1641979860387,0.00795793,3266.8,3266.6,0.76517]
[1641979860587,0.00738951,3266.7,3266.6,0.76517]
[1641979861848,0.00738951,3266.7,3266.5,1.53037]
[1641979862245,0.00682108,3266.6,3266.5,1.53037]
[1641979862446,0.00682108,3266.6,3266.5,4.28140718]
[1641979862647,0.31332108,3266.6,3266.5,1.53037]
[1641979862848,0.31332108,3266.6,3266.5,1.83037]
[1641979863849,0.31332108,3266.6,3266.4,1.53045]
[1641979864053,1.40054509,3266.6,3266.0,1.53069]
[1641979864250,0.00625266,3266.5,3265.7,0.76548]
[1641979864652,0.00568424,3266.4,3265.7,1.53092]
[1641979864850,0.00568424,3266.4,3265.7,0.76544]
[1641979865051,0.00568424,3266.4,3265.6,4.28183718]
[1641979865052,0.00511581,3266.3,3265.6,4.28183718]
[1641979865257,0.00511581,3266.3,3266.0,0.76542]
[1641979865491,0.00454739,3266.2,3266.1,3.19203718]
[1641979865690,0.3065,3266.6,3266.1,0.4538393]
[1641979865890,0.3065,3266.2,3266.1,0.4538393]
[1641979866091,0.3065,3266.2,3266.1,1.9842777]
[1641979866291,0.3065,3266.2,3266.1,2.2842777]
[1641979866889,0.3065,3266.2,3266.1,3.0494977]
[1641979867095,0.3065,3266.2,3266.1,3.0366584]
[1641979867291,0.3065,3266.2,3266.1,5.3324084]
[1641979867690,0.3065,3266.2,3266.1,5.0324084]
[1641979867889,0.3065,3266.2,3266.1,1.97143]
[1641979869137,0.3065,3267.0,3266.1,1.97143]
[1641979869331,0.3065,3267.0,3266.5,0.76537]
[1641979869532,0.00397896,3266.9,3266.5,0.76537]
[1641979869933,1.51231552,3266.6,3266.5,0.76537]
[1641979870132,1.51231552,3266.6,3266.0,1.5306261]
[1641979870133,1.51231552,3266.6,3266.0,1.53083]
[1641979870333,0.0291573,3266.5,3266.0,2.29627]
[1641979870537,1.51458921,3266.6,3266.2,0.76543]
[1641979870737,0.00113685,3266.4,3266.2,0.76543]
[1641979871739,0.00113685,3266.4,3266.2,1.13543]
[1641979872139,0.3065,3266.3,3266.2,1.13543]
[1641979872988,0.3065,3266.3,3266.2,0.37]
[1641979884144,1.1351,3266.3,3266.2,0.37]
[1641979888693,2.1351,3266.3,3266.2,0.37]
[1641979889498,1.1351,3266.3,3266.2,0.37]
[1641979889697,0.3065,3266.3,3266.2,0.37]
[1641979895243,1.0721,3266.3,3266.2,0.37]
[1641979897209,0.3065,3266.3,3266.2,0.37]
[1641979897606,0.3065,3266.3,3266.2,3.42730581]
[1641979897814,0.3065,3266.3,3266.2,3.12730581]
[1641979898607,0.3065,3266.3,3266.2,3.42730581]
[1641979898808,0.3065,3266.3,3266.2,4.62553882]
[1641979899539,0.3065,3266.3,3266.2,1.86823301]
[1641979899939,0.3065,3266.3,3266.2,0.37]
[1641979901546,0.3065,3266.9,3266.2,1.86736217]
[1641979901748,0.3065,3266.9,3266.5,0.7654]
[1641979901945,0.3065,3266.9,3266.5,1.53078]
[1641979901946,0.31047896,3266.9,3266.5,1.53078]
[1641979904093,0.31047896,3266.9,3266.6,0.3]
[1641979904292,0.31047896,3266.9,3266.5,1.53078]
[1641979905495,0.05324929,3266.8,3266.5,1.53078]
[1641979905700,0.31047896,3266.9,3266.5,1.53078]
[1641979905897,0.00284212,3266.7,3266.5,1.53078]
[1641979906097,0.00341054,3266.8,3266.5,1.53078]
[1641979906298,0.00227369,3266.6,3266.5,1.53078]
[1641979906496,0.00284212,3266.7,3266.5,1.53078]
[1641979906740,0.00227369,3266.6,3266.5,1.53078]
[1641979909645,0.30877369,3266.6,3266.5,1.53078]
[1641979910245,0.02634067,3266.5,3266.2,0.37]
[1641979910497,0.30877369,3266.6,3266.2,0.37]
[1641979910698,0.00113685,3266.4,3266.2,0.37]
[1641979910901,0.00170527,3266.5,3266.2,0.37]
[1641979911104,0.01668212,3266.4,3266.2,0.37]
[1641979911296,2.59635124,3266.4,3266.2,0.37]
[1641979911498,3.36197124,3266.4,3266.2,0.37]
[1641979913001,2.59635124,3266.4,3266.2,0.37]
[1641979913440,1.3065,3266.3,3266.2,0.37]
[1641979913601,0.3065,3266.3,3266.2,0.37]
[1641979926796,0.3065,3266.3,3266.2,1.50844835]
[1641979926997,0.3065,3266.3,3266.2,0.37]
[1641979932052,0.3065,3266.3,3265.4,7.64114]
[1641979932255,0.3065,3266.3,3264.8,0.9646786]
[1641979932256,7.55,3266.1,3264.8,0.9646786]
[1641979932451,1.18947071,3265.9,3265.5,0.00397896]
[1641979932651,1.2069,3265.8,3265.5,0.00397896]
[1641979932898,0.3,3265.7,3265.5,0.00397896]
[1641979933099,0.741,3265.7,3265.5,0.00397896]
[1641979933299,8.31582,3265.6,3265.5,0.00397896]
[1641979933497,7.55,3265.5,3264.8,0.9646786]
[1641979933697,9.15,3265.5,3264.9,0.00341055]
[1641979934102,9.4328,3265.5,3264.9,0.00341055]
[1641979934299,0.76595,3265.2,3264.9,0.00341055]
[1641979934501,1.06595,3265.2,3264.9,0.00341055]
[1641979934700,0.31380819,3265.1,3264.9,0.00341055]
[1641979934902,0.3,3265.1,3264.9,0.00341055]
[1641979935900,0.3065,3265.0,3264.9,0.00341055]
[1641979936941,0.3065,3265.0,3264.9,1.10895114]
[1641979938445,0.3065,3265.0,3264.9,11.4334198]
[1641979938446,0.0001,3265.0,3264.9,11.4334198]
[1641979938645,0.0001,3265.0,3264.9,2.78996848]
[1641979939254,0.0001,3265.0,3264.9,0.00341055]
[1641979940146,0.0001,3265.0,3264.9,2.77787921]
[1641979940407,0.0001,3265.0,3264.9,0.00341055]
[1641979940838,0.0001,3265.0,3264.9,2.73924534]
[1641979941602,0.0001,3265.0,3264.9,0.00341055]
[1641979942205,0.0001,3265.0,3264.9,2.5611997]
[1641979942505,3.8224,3266.2,3264.9,0.76905055]
[1641979942706,3.8224,3266.2,3265.0,0.76563]
[1641979942914,0.00227369,3265.9,3265.0,0.76847212]
[1641979943106,0.00227369,3265.9,3265.1,0.0022737]
[1641979943303,3.8224,3266.2,3265.8,1.39535343]
[1641979943504,10.5375,3266.3,3265.1,0.0022737]
[1641979943707,0.00284211,3266.0,3265.1,0.0022737]
[1641979944140,1.0,3266.2,3265.1,0.0022737]
[1641979944141,0.00227369,3265.9,3265.1,0.0022737]
[1641979944542,0.00170527,3265.8,3265.1,0.0022737]
[1641979944747,0.00170527,3265.8,3265.4,1.28880899]
[1641979945045,0.00113684,3265.7,3265.4,1.28880899]
[1641979945449,0.00341054,3266.1,3265.4,1.28880899]
[1641979945849,0.00341054,3266.1,3265.5,1.53091]
[1641979946453,4.9219,3267.8,3265.7,0.76533]
[1641979946652,6.8039,3267.7,3267.0,1.17571205]
[1641979946855,6.8039,3267.7,3266.6,0.8593]
[1641979947051,10.6452,3267.7,3266.6,0.8593]
[1641979947656,11.41048,3267.7,3266.6,0.8593]
[1641979947916,11.41048,3267.7,3266.8,1.44337922]
[1641979948106,1.0,3267.6,3266.8,1.44337922]
[1641979948511,0.00795792,3267.5,3266.8,1.44337922]
[1641979948911,0.0073895,3267.4,3266.8,1.44337922]
[1641979949312,0.00682108,3267.3,3266.8,1.44337922]
[1641979949713,0.00625265,3267.2,3266.8,1.44337922]
[1641979950113,0.00568423,3267.1,3266.8,1.44337922]
[1641979950513,0.00511581,3267.0,3266.8,1.44337922]
[1641979950921,0.00454738,3266.9,3266.8,1.44337922]
[1641979951313,0.00454738,3266.9,3266.3,3.06105]
[1641979951748,0.03780209,3266.8,3266.3,1.53052]
[1641979952158,0.00341054,3266.7,3266.1,0.01231252]
[1641979952354,0.00341054,3266.7,3266.3,2.20993111]
[1641979952556,13.55446,3267.6,3266.3,1.44459111]
[1641979952557,0.00284211,3266.6,3266.3,1.44459111]
[1641979952958,0.00227369,3266.5,3266.3,1.44459111]
[1641979953357,0.00170527,3266.4,3266.3,1.44459111]
[1641979954159,0.00170527,3266.4,3265.8,5.77200527]
[1641979954560,0.00113684,3266.3,3265.9,0.00113685]
[1641979954765,0.0189298,3266.2,3265.9,0.00113685]
[1641979954961,0.00568423,3267.1,3265.9,0.00113685]
[1641979955160,0.02141903,3267.1,3266.0,1.53698394]
[1641979955395,2.7737,3267.2,3266.0,1.53698394]
[1641979955396,0.76548,3266.8,3266.0,1.53698394]
[1641979955796,0.30341054,3266.7,3266.0,1.53698394]
[1641979955996,0.00341054,3266.7,3266.0,1.53698394]
[1641979956195,0.00284211,3266.6,3266.0,1.53698394]
[1641979956397,0.00284211,3266.6,3265.8,0.00170527]
[1641979956698,0.76783369,3266.5,3265.8,0.00170527]
[1641979956897,0.01971299,3266.4,3265.8,0.00170527]
[1641979957100,6.62841826,3266.4,3265.4,0.00397897]
[1641979957401,0.01590368,3266.2,3265.4,0.00397897]
[1641979957596,9.27993684,3266.3,3265.4,0.00397897]
[1641979958800,11.27678755,3266.3,3265.4,0.00397897]
[1641979959448,11.27678755,3266.3,3265.3,0.00454739]
[1641979959851,0.7657,3265.9,3265.3,0.00454739]
[1641979960250,0.7657,3265.9,3264.9,0.00682109]
[1641979960953,1.14803384,3265.7,3264.9,0.00682109]
[1641979961157,1.91378384,3265.7,3264.9,0.00682109]
[1641979962355,2.21378384,3265.7,3264.9,0.00682109]
[1641979962560,0.03874393,3265.6,3264.9,0.00682109]
[1641979962755,1.76575,3265.7,3264.9,0.00682109]
[1641979965698,0.76575,3265.7,3264.9,0.00682109]
[1641979965902,6.7324,3265.8,3265.0,0.00607264]
[1641979966099,6.7324,3265.8,3264.9,3.24042937]
[1641979966398,13.5784,3265.8,3265.4,1.29663381]
[1641979966844,6.7324,3265.8,3265.5,0.00341054]
[1641979967044,1.2396,3265.9,3265.5,0.00341054]
[1641979967245,7.97165,3266.1,3265.6,0.0121572]
[1641979967445,9.27165,3266.1,3265.5,0.00341054]
[1641979967649,9.27165,3266.1,3265.7,0.0022737]
[1641979967851,8.506,3266.1,3265.5,0.00341054]
[1641979968554,9.6768,3266.1,3265.5,0.00341054]
[1641979968849,0.7657,3265.8,3264.9,0.00682109]
[1641979969050,0.01514693,3265.7,3264.9,0.00682109]
[1641979969249,0.7657,3265.8,3264.9,0.00682109]
[1641979970154,1.0657,3265.8,3264.9,0.00682109]
[1641979971508,1.0657,3265.8,3265.2,1.5381724]
[1641979971707,1.0657,3265.8,3265.3,0.03581789]
[1641979971908,1.0657,3265.8,3265.3,0.00454739]
[1641979972107,1.0657,3265.8,3265.4,0.00397897]
[1641979972316,1.0657,3265.8,3265.3,0.00454739]
[1641979972913,0.7657,3265.8,3265.3,0.00454739]
[1641979973411,9.3768,3266.1,3265.3,0.00454739]
[1641979973412,0.76566,3266.0,3265.3,0.00454739]
[1641979973812,0.3,3265.9,3265.3,0.00454739]
[1641979974013,0.76566,3266.0,3265.3,0.00454739]
[1641979974014,1.0,3266.0,3265.3,0.00454739]
[1641979975265,1.0,3266.0,3265.7,1.32251408]
[1641979975463,1.0,3266.0,3265.3,0.00454739]
[1641979975762,1.0,3266.0,3264.9,2.44642577]
[1641979975961,1.0,3266.0,3264.9,2.456604]
[1641979976164,1.0,3266.0,3265.0,0.00625266]
[1641979976967,0.02448284,3265.9,3265.0,0.00625266]
[1641979977367,1.76568,3266.0,3265.0,0.00625266]
[1641979977567,1.76568,3266.0,3265.5,1.36677542]
[1641979977994,1.76568,3266.0,3265.6,0.00284212]
[1641979978197,0.3,3265.9,3265.6,0.00284212]
[1641979978398,0.78559174,3265.8,3265.0,0.00625266]
[1641979978593,0.76572,3265.8,3264.9,0.00682109]
[1641979979394,0.76572,3265.8,3265.3,1.10966477]
[1641979979793,0.76572,3265.8,3265.4,0.00397897]
[1641979982058,0.02036218,3265.7,3265.4,0.00397897]
[1641979982254,0.76572,3265.8,3265.4,0.00397897]
[1641979983455,0.04221643,3265.7,3265.4,0.00397897]
[1641979983856,0.76572,3265.8,3265.4,0.00397897]
[1641979984256,0.02751882,3265.7,3265.4,0.00397897]
[1641979984456,0.76577,3265.6,3265.1,0.00568424]
[1641979984657,0.01323291,3265.5,3264.9,0.00682109]
[1641979984958,1.36957972,3265.7,3264.9,0.00682109]
[1641979985605,0.3,3265.8,3264.9,0.00682109]
[1641979986016,0.76589,3265.2,3264.9,0.00682109]
[1641979986242,1.2448,3265.7,3264.9,0.00682109]
[1641979986402,2.2448,3265.7,3264.9,0.00682109]
[1641979986803,2.2448,3265.7,3265.3,1.18752649]
[1641979987003,3.6846,3265.8,3265.3,1.18752649]
[1641979987206,3.6846,3265.8,3265.4,0.00397897]
[1641979987207,4.45033,3265.8,3265.4,0.00397897]
[1641979987604,0.76573,3265.8,3265.4,0.00397897]
[1641979988405,0.76573,3265.8,3265.0,0.7657]
[1641979988808,0.76573,3265.8,3265.1,0.00568424]
[1641979989009,0.76573,3265.8,3265.2,1.12054677]
[1641979989442,0.76573,3265.8,3265.3,0.00454739]
[1641979990447,0.03366634,3265.7,3265.3,0.00454739]
[1641979990647,0.76573,3265.8,3265.3,0.00454739]
[1641979992151,0.71573,3265.8,3265.3,0.00454739]
[1641979994701,0.71573,3265.8,3265.7,1.23974129]
[1641979994905,6.5127,3266.2,3265.7,4.00342859]
[1641979995101,6.5127,3266.2,3265.8,0.76547]
[1641979995301,6.5127,3266.2,3265.8,0.00170527]
[1641979995502,6.5127,3266.2,3265.9,0.00113685]
[1641979995703,6.5127,3266.2,3265.8,0.00170527]
[1641979997745,0.01802639,3266.1,3265.8,0.00170527]
[1641979997946,6.5127,3266.2,3265.8,0.00170527]
[1641979998146,0.02099176,3266.1,3265.8,0.00170527]
[1641979998553,6.5127,3266.2,3265.5,0.00341054]
[1641979998749,1.1795,3266.1,3265.5,0.00341054]
[1641979998949,1.1795,3266.1,3265.4,0.00397897]
[1641980000050,1.94515,3266.1,3265.4,0.00397897]
[1641980000901,1.94515,3266.1,3265.1,0.00568424]
[1641980001205,1.27644806,3265.6,3265.1,0.00568424]
[1641980001399,0.76571,3265.8,3265.1,0.00568424]
[1641980002403,1.89344912,3265.8,3265.1,0.00568424]
[1641980004464,0.05686443,3265.7,3265.1,0.00568424]
[1641980004663,0.76579,3265.5,3265.1,0.00568424]
[1641980004865,0.02784373,3265.4,3265.1,0.00568424]
[1641980005065,0.02784373,3265.4,3264.9,0.00682109]
[1641980005668,0.76579,3265.5,3264.9,0.00682109]
[1641980007472,0.76579,3265.5,3265.0,0.03196762]
[1641980007771,0.76579,3265.5,3265.1,0.00568424]
[1641980007996,0.76579,3265.5,3265.2,0.01526081]
[1641980008399,0.76579,3265.5,3265.3,0.00454739]
[1641980008798,0.76579,3265.5,3264.9,0.00682109]
[1641980010307,0.76579,3265.5,3263.5,8.81546]
[1641980010308,7.55,3265.1,3264.0,3.0]
[1641980010508,3.55311519,3265.0,3264.0,3.0]
[1641980010706,5.51,3264.9,3264.1,0.00454738]
[1641980010904,0.441,3264.8,3264.1,0.00454738]
[1641980011104,2.5038,3264.8,3264.1,0.00454738]
[1641980011308,1.54114023,3264.5,3264.1,0.00454738]
[1641980011652,0.76609,3264.3,3264.1,0.00454738]
[1641980011849,7.541,3264.2,3264.1,0.00454738]
[1641980012049,0.441,3264.2,3264.1,0.00454738]
[1641980012248,1.741,3264.2,3264.1,0.00454738]
[1641980012449,2.041,3264.2,3264.1,0.00454738]
[1641980012651,0.441,3264.2,3264.1,0.00454738]
[1641980012850,1.441,3264.2,3264.1,0.00454738]
[1641980013088,0.441,3264.2,3264.1,0.00454738]
[1641980013550,0.741,3264.2,3264.1,0.00454738]
[1641980017314,0.441,3264.2,3264.1,0.00454738]
[1641980017517,3.991,3264.2,3264.1,0.00454738]
[1641980017715,1.8071813,3264.2,3264.1,0.00454738]
[1641980017914,2.5071813,3264.2,3264.1,0.00454738]
[1641980018113,2.8071813,3264.2,3264.1,0.00454738]
[1641980018456,2.5071813,3264.2,3264.1,0.00454738]
[1641980018612,1.5071813,3264.2,3264.1,0.00454738]
[1641980018815,0.441,3264.2,3264.1,0.00454738]
[1641980020252,0.441,3264.2,3264.0,2.93495738]
[1641980023804,0.741,3264.2,3264.0,2.93495738]
[1641980027757,0.441,3264.2,3264.0,2.93495738]
[1641980039742,0.76085837,3264.2,3264.0,2.93495738]
[1641980039923,1.041,3264.2,3264.0,2.93495738]
[1641980040122,2.041,3264.2,3264.0,2.93495738]
[1641980041962,2.80725,3264.2,3264.0,2.93495738]
[1641980042958,7.55,3264.1,3263.0,3.8901]
[1641980043162,0.76631,3263.4,3262.1,1.213]
[1641980043361,1.63266376,3263.3,3263.1,0.00568424]
[1641980043558,2.2162,3263.3,3263.1,0.00568424]
[1641980043761,2.2162,3263.3,3261.9,0.9646786]
[1641980043762,6.8291,3263.2,3262.0,0.0119369]
[1641980043960,0.02024881,3263.0,3262.0,0.0119369]
[1641980044159,0.02024881,3263.0,3262.3,1.41429006]
[1641980044359,0.76644,3262.7,3262.3,1.41429006]
[1641980044559,0.76644,3262.7,3262.4,0.0096632]
[1641980044759,0.01554349,3262.6,3262.4,0.0096632]
[1641980044961,1.0,3263.0,3262.4,0.0096632]
[1641980045166,1.441,3263.1,3262.4,0.0096632]
[1641980045414,1.741,3263.1,3262.4,0.0096632]
[1641980046009,0.76637,3263.0,3262.4,0.0096632]
[1641980047011,1.06637,3263.0,3262.4,0.0096632]
[1641980047719,1.0,3263.1,3262.4,0.0096632]
[1641980047917,0.3,3263.0,3262.4,0.0096632]
[1641980048111,1.0,3263.1,3262.4,0.0096632]
[1641980048312,13.4741,3263.2,3262.4,0.0096632]
[1641980048510,1.0,3263.1,3262.4,0.0096632]
[1641980048714,13.94041,3263.2,3262.9,1.40296984]
[1641980048918,6.8291,3263.2,3262.9,1.40296984]
[1641980049155,6.8291,3263.2,3263.0,0.00625266]
[1641980049456,6.8291,3263.2,3262.9,1.38595836]
[1641980050056,1.02760752,3263.1,3261.9,2.2136786]
[1641980050457,2.1766,3263.1,3262.0,0.00568424]
[1641980051060,2.1766,3263.1,3262.5,1.11815346]
[1641980051264,0.76642,3262.8,3262.5,1.11815346]
[1641980051464,3.70941,3263.1,3262.6,0.0022737]
[1641980051660,4.1,3263.0,3262.5,1.11364616]
[1641980051862,3.70941,3263.1,3262.5,1.11364616]
[1641980052064,0.0022737,3263.0,3262.5,1.11364616]
[1641980052564,0.00170527,3262.9,3262.5,1.11364616]
[1641980052769,0.76808527,3262.9,3262.5,1.11364616]
[1641980053003,0.00113685,3262.8,3262.5,1.11364616]
[1641980054509,0.00113685,3262.8,3262.0,2.57831431]
[1641980054713,0.00113685,3262.8,3261.9,0.9646786]
[1641980054714,0.02798029,3262.7,3261.9,0.9646786]
[1641980054914,0.76648,3262.5,3262.1,0.00284211]
[1641980055511,1.06648,3262.5,3262.1,0.00284211]
[1641980055716,1.06648,3262.5,3260.5,1.2442]
[1641980055717,7.55,3262.2,3260.4,6.78330546]
[1641980055916,0.76673,3261.4,3260.5,2.77503918]
[1641980056112,0.441,3261.8,3260.5,2.78413396]
[1641980057155,0.7667703,3261.7,3260.9,1.20050176]
[1641980057364,0.7667703,3261.7,3260.5,2.78413396]
[1641980057560,0.741,3261.6,3261.0,0.00625266]
[1641980057863,0.441,3261.5,3260.6,0.00852635]
[1641980058557,2.02740102,3261.1,3260.2,1.18530109]
[1641980058757,0.76687,3261.1,3260.2,1.18530109]
[1641980058957,0.00227369,3261.0,3260.3,0.00170528]
[1641980059364,0.00170527,3260.9,3260.3,0.00170528]
[1641980059658,0.7669,3260.7,3260.3,0.00170528]
[1641980060262,0.441,3260.6,3260.1,0.00284212]
[1641980060515,0.441,3260.6,3260.0,0.00341055]
[1641980060516,0.76706,3260.4,3260.0,0.00341055]
[1641980060715,1.50806,3260.4,3260.0,0.00341055]
[1641980061513,2.2751549,3260.4,3260.0,0.00341055]
[1641980061814,2.2751549,3260.4,3259.7,1.42262298]
[1641980061815,0.76704,3260.1,3259.8,0.00454739]
[1641980062017,1.06704,3260.1,3259.8,0.00454739]
[1641980062814,1.06704,3260.1,3259.3,6.11]
[1641980062815,0.01466171,3260.0,3259.4,0.00682109]
[1641980063018,6.3799,3260.3,3259.4,0.00682109]
[1641980063019,7.14689,3260.3,3259.4,0.00682109]
[1641980063415,7.14689,3260.3,3259.6,1.10449224]
[1641980063813,7.14689,3260.3,3259.7,0.00511582]
[1641980064653,7.14689,3260.3,3259.4,0.00682109]
[1641980065053,0.02107176,3260.2,3259.4,0.00682109]
[1641980065254,7.14689,3260.3,3259.1,1.22149969]
[1641980065460,6.3799,3260.3,3259.2,1.53377]
[1641980065764,0.00454739,3260.2,3260.0,1.49835292]
[1641980065960,0.00454739,3260.2,3259.2,1.53490684]
[1641980066161,0.00397897,3260.1,3259.2,1.53490684]
[1641980066363,0.77102897,3260.1,3259.2,0.00113684]
[1641980066563,0.01971618,3260.0,3259.2,0.00113684]
[1641980066963,0.00284212,3259.9,3259.2,0.00113684]
[1641980067162,0.00284212,3259.9,3259.4,1.27275298]
[1641980067364,0.0022737,3259.8,3259.4,1.27275298]
[1641980067764,0.00170527,3259.7,3259.4,1.27275298]
[1641980068209,0.00113685,3259.6,3259.4,1.27275298]
[1641980068610,0.00454739,3260.2,3259.4,1.27275298]
[1641980069013,0.00397897,3260.1,3259.4,1.27275298]
[1641980069210,0.02387594,3260.0,3259.4,1.27275298]
[1641980069409,0.02728648,3260.0,3259.4,1.27275298]
[1641980069634,0.00284212,3259.9,3259.4,1.27275298]
[1641980070011,0.01422868,3260.1,3259.4,1.27275298]
[1641980070012,0.0022737,3259.8,3259.4,1.27275298]
[1641980070413,0.02102065,3259.7,3259.4,1.27275298]
[1641980070814,0.00113685,3259.6,3259.4,1.27275298]
[1641980071114,0.76708,3260.0,3259.4,1.27275298]
[1641980071412,0.00284212,3259.9,3259.4,1.27275298]
[1641980071891,0.0022737,3259.8,3259.4,1.27275298]
[1641980072257,0.00170527,3259.7,3259.4,1.27275298]
[1641980072658,0.0436554,3259.6,3259.4,1.27275298]
[1641980072970,0.00397897,3260.1,3259.4,1.27275298]
[1641980073262,0.00341054,3260.0,3259.4,1.27275298]
[1641980073662,0.00284212,3259.9,3259.4,1.27275298]
[1641980073867,0.76993212,3259.9,3259.4,1.27275298]
[1641980074060,0.0022737,3259.8,3259.4,1.27275298]
[1641980074259,0.02613355,3259.7,3259.4,1.27275298]
[1641980074460,0.00170527,3259.7,3259.4,1.27275298]
[1641980074660,0.00113685,3259.6,3259.4,1.27275298]
[1641980074959,1.9750908,3260.6,3259.4,1.27275298]
[1641980074960,0.0022737,3259.8,3259.5,0.03546104]
[1641980075162,0.0022737,3259.8,3259.6,6.12076739]
[1641980075416,0.441,3261.4,3259.7,8.52082132]
[1641980075810,0.00909478,3261.0,3259.9,0.7667645]
[1641980076008,0.00909478,3261.0,3260.0,0.76677]
[1641980076213,0.00852636,3260.9,3260.0,3.53759132]
[1641980076612,14.2897,3261.5,3260.8,1.32261916]
[1641980077012,0.00909478,3261.0,3260.8,1.32261916]
[1641980077249,0.00909478,3261.0,3260.2,6.11]
[1641980077412,0.00852636,3260.9,3260.1,2.53181772]
[1641980077612,0.00852636,3260.9,3260.0,0.76679]
[1641980077813,0.00795793,3260.8,3260.1,2.74482776]
[1641980078335,0.00738951,3260.7,3260.6,1.29593107]
[1641980078914,0.00738951,3260.7,3259.8,2.88285556]
[1641980079159,0.01799974,3260.6,3259.5,3.08377518]
[1641980079390,0.02482083,3260.6,3259.5,4.08377518]
[1641980079560,0.00625266,3260.5,3259.5,4.08377518]
[1641980079963,0.00568424,3260.4,3260.2,1.1843558]
[1641980080366,0.00511581,3260.3,3260.2,1.1843558]
[1641980083820,0.00511581,3260.3,3259.2,0.00113684]
[1641980084025,0.06214002,3260.2,3259.2,2.77195816]
[1641980084218,0.00454739,3260.2,3259.2,2.77195816]
[1641980084418,0.00397897,3260.1,3259.2,0.00113684]
[1641980084824,0.00341054,3260.0,3259.8,1.2490569]
[1641980085021,0.00341054,3260.0,3259.2,0.00113684]
[1641980085219,0.00284212,3259.9,3259.2,0.00113684]
[1641980085625,0.0022737,3259.8,3259.2,0.00113684]
[1641980086026,0.00170527,3259.7,3259.2,0.00113684]
[1641980086425,0.3,3260.2,3259.2,0.00113684]
[1641980086426,0.00113685,3259.6,3259.2,0.00113684]
[1641980086865,1.5344833,3259.6,3259.2,0.00113684]
[1641980087066,0.03104444,3259.5,3259.2,0.00113684]
[1641980087266,0.33104444,3259.5,3259.2,0.00113684]
[1641980087567,0.03104444,3259.5,3259.2,0.00113684]
[1641980087765,0.7672,3259.5,3259.2,0.00113684]
[1641980088167,1.7672,3259.5,3259.2,0.00113684]
[1641980088766,0.7672,3259.5,3259.2,0.00113684]
[1641980090815,1.7672,3259.5,3259.2,0.00113684]
[1641980092418,0.02211598,3259.4,3259.2,0.00113684]
[1641980092616,1.7672,3259.5,3259.2,0.00113684]
[1641980092818,0.04010389,3259.4,3259.2,0.00113684]
[1641980093019,0.34010389,3259.4,3259.2,0.00113684]
[1641980093420,0.3,3259.4,3259.2,0.00113684]
[1641980093819,1.0672,3259.5,3259.2,0.00113684]
[1641980094019,0.3,3259.5,3259.2,0.00113684]
[1641980094262,1.1985,3259.9,3259.2,0.00113684]
[1641980094662,0.0022737,3259.8,3259.2,0.00113684]
[1641980095063,0.00170527,3259.7,3259.5,1.28983649]
[1641980095364,0.00113685,3259.6,3259.5,1.28983649]
[1641980096971,0.00113685,3259.6,3259.5,3.85349765]
[1641980097171,0.00113685,3259.6,3259.5,1.28983649]
[1641980100022,0.00113685,3259.6,3259.1,0.9646786]
[1641980100223,0.05604173,3259.5,3259.1,0.9646786]
[1641980100522,0.00113685,3259.6,3259.1,0.9646786]
[1641980101330,0.00113685,3259.6,3259.2,1.40922064]
[1641980101859,0.76831685,3259.6,3259.2,1.40922064]
[1641980102058,0.01800535,3259.5,3259.2,1.40922064]